bitfinex/quotes_BTCUSD_20260103
["timestamp","ask_amount","ask_price","bid_price","bid_amount"]
[1767401035252,0.0760321,90087.0,90081.0,0.01110112]
[1767401035652,0.07599007,90087.0,90081.0,0.01110112]
[1767401036072,0.0111005,90086.0,90081.0,0.01110112]
[1767401036853,0.0111005,90086.0,90082.0,0.01112]
[1767401038379,0.01110025,90088.0,90082.0,0.01112]
[1767401039099,0.01110038,90087.0,90082.0,0.01112]
[1767401039317,0.01110038,90087.0,90082.0,0.02222099]
[1767401040409,0.01110038,90087.0,90082.0,0.01112]
[1767401040614,0.01110025,90088.0,90082.0,0.02222099]
[1767401041019,0.01110038,90087.0,90081.0,0.01110112]
[1767401041224,0.01110025,90088.0,90082.0,0.02222099]
[1767401041408,0.01110013,90089.0,90083.0,0.01110087]
[1767401041600,0.01110013,90089.0,90082.0,0.01112]
[1767401041601,0.01110062,90085.0,90082.0,0.01112]
[1767401041801,0.01110136,90079.0,90076.0,0.01112]
[1767401042006,0.09376523,90078.0,90073.0,0.0111021]
[1767401042446,0.0001081,90079.0,90073.0,0.0111021]
[1767401042853,0.0001081,90079.0,90072.0,0.07788399]
[1767401042854,0.01120946,90079.0,90072.0,0.02237302]
[1767401043027,0.0001081,90079.0,90074.0,0.01110198]
[1767401043235,0.01120946,90079.0,90074.0,0.01110198]
[1767401043659,0.01120946,90079.0,90072.0,0.0112708]
[1767401043871,0.000956,90074.0,90072.0,0.0112708]
[1767401044181,0.01110173,90076.0,90072.0,0.0112708]
[1767401044410,0.01110161,90077.0,90072.0,0.02237302]
[1767401044654,0.01110161,90077.0,90072.0,0.0112708]
[1767401044827,0.000956,90072.0,90071.0,0.01112]
[1767401045328,0.01110161,90077.0,90071.0,0.02222235]
[1767401045689,0.01110173,90076.0,90071.0,0.02222235]
[1767401046475,0.01110185,90075.0,90071.0,0.01112]
[1767401046674,0.01205835,90071.0,90065.0,0.01110309]
[1767401046913,0.05550915,90076.0,90067.0,0.06661659]
[1767401047181,0.0937656,90075.0,90070.0,0.01110247]
[1767401047369,0.01110185,90075.0,90070.0,0.01110247]
[1767401047554,0.06661088,90076.0,90070.0,0.01110247]
[1767401047760,0.01110198,90074.0,90068.0,0.01110272]
[1767401047972,0.01110198,90074.0,90069.0,0.01110259]
[1767401048364,0.0111021,90073.0,90068.0,0.01110272]
[1767401048607,0.0111021,90073.0,90067.0,0.06661659]
[1767401048952,0.01110222,90072.0,90067.0,0.01110284]
[1767401049195,0.0111021,90073.0,90067.0,0.01110284]
[1767401049377,0.01110198,90074.0,90069.0,0.01110259]
[1767401049989,0.01110198,90074.0,90068.0,0.01110272]
[1767401050258,0.06661088,90076.0,90070.0,0.01110247]
[1767401050457,0.01110161,90077.0,90072.0,0.01110222]
[1767401050998,0.01110148,90078.0,90073.0,0.0111021]
[1767401051200,0.01110161,90077.0,90072.0,0.01110222]
[1767401051735,0.01110148,90078.0,90073.0,0.0111021]
[1767401053143,0.01110148,90078.0,90072.0,0.01110222]
[1767401054077,0.01110148,90078.0,90073.0,0.0111021]
[1767401054751,0.01110161,90077.0,90072.0,0.01110222]
[1767401055467,0.01120946,90079.0,90077.0,4.3e-05]
[1767401055788,0.01120946,90079.0,90073.0,0.0111021]
[1767401056183,0.01110148,90078.0,90072.0,0.01110222]
[1767401056758,0.01110148,90078.0,90073.0,0.0111021]
[1767401056934,0.01110161,90077.0,90072.0,0.01110222]
[1767401057319,0.01110161,90077.0,90071.0,0.01110235]
[1767401058883,0.01110161,90077.0,90072.0,0.01110222]
[1767401059216,0.01110148,90078.0,90073.0,0.0111021]
[1767401059704,0.01120946,90079.0,90074.0,0.01110198]
[1767401060001,0.01120946,90079.0,90073.0,0.0111021]
[1767401060323,0.01120946,90079.0,90074.0,0.01110198]
[1767401060875,0.01110148,90078.0,90073.0,0.0111021]
[1767401061099,0.01120946,90079.0,90074.0,0.01110198]
[1767401061301,0.01110148,90078.0,90073.0,0.0111021]
[1767401061506,0.01120946,90079.0,90074.0,0.01110198]
[1767401062091,6.51e-05,90079.0,90074.0,0.01110198]
[1767401062661,0.000999,90074.0,90068.0,0.01110272]
[1767401062881,0.01110173,90076.0,90068.0,0.01110272]
[1767401063084,0.01110173,90076.0,90070.0,0.01110247]
[1767401063302,0.01110161,90077.0,90070.0,0.01110247]
[1767401063534,0.01110161,90077.0,90072.0,0.01110222]
[1767401065430,0.01110148,90078.0,90073.0,0.0111021]
[1767401066109,0.01110161,90077.0,90072.0,0.01110222]
[1767401066319,0.01110161,90077.0,90071.0,0.01110235]
[1767401066551,0.01110161,90077.0,90069.0,0.06661502]
[1767401066962,0.01110185,90075.0,90070.0,0.01110247]
[1767401067202,0.01110173,90076.0,90070.0,0.01110247]
[1767401067385,0.01110161,90077.0,90071.0,0.01110235]
[1767401067627,0.01110148,90078.0,90072.0,0.01110222]
[1767401068282,0.01116646,90079.0,90072.0,0.06661336]
[1767401069182,0.01110148,90078.0,90073.0,0.0111021]
[1767401069612,6.51e-05,90079.0,90078.0,4.3e-05]
[1767401070034,0.01110148,90078.0,90073.0,0.0111021]
[1767401071742,0.01116646,90079.0,90073.0,0.0111021]
[1767401072143,0.01116646,90079.0,90073.0,0.01045323]
[1767401073000,0.01116646,90079.0,90074.0,0.01110198]
[1767401073214,0.01110124,90080.0,90074.0,0.09835787]
[1767401073710,0.01110124,90080.0,90073.0,0.0111021]
[1767401073929,0.0666085,90079.0,90071.0,0.01110235]
[1767401074152,0.01110161,90077.0,90071.0,0.01110235]
[1767401075004,0.01110173,90076.0,90070.0,0.01110247]
[1767401075204,0.01110185,90075.0,90068.0,0.01110272]
[1767401075642,0.01110185,90075.0,90069.0,0.01110259]
[1767401077495,0.01116171,90076.0,90070.0,0.01110247]
[1767401077837,0.01110185,90075.0,90070.0,0.01110247]
[1767401078911,0.01116171,90076.0,90070.0,0.01110247]
[1767401079881,0.01110185,90075.0,90068.0,0.01110272]
[1767401080121,0.01110185,90075.0,90070.0,0.01110247]
[1767401080273,0.000956,90068.0,90067.0,0.06661706]
[1767401080439,0.00091445,90068.0,90067.0,0.07773706]
[1767401080636,0.0111021,90073.0,90066.0,0.01110296]
[1767401080884,0.10982677,90073.0,90066.0,0.01110296]
[1767401081054,0.09856488,90073.0,90068.0,0.01110272]
[1767401081506,0.09856488,90073.0,90069.0,0.01110259]
[1767401081712,0.01110198,90074.0,90068.0,0.01110272]
[1767401082248,0.01110198,90074.0,90069.0,0.01110259]
[1767401082377,0.01110198,90074.0,90068.0,0.01110272]
[1767401082885,0.01110198,90074.0,90067.0,0.01110284]
[1767401083090,0.01110198,90074.0,90068.0,0.01110272]
[1767401083505,0.01110185,90075.0,90069.0,0.01110259]
[1767401083901,0.01110198,90074.0,90068.0,0.01110272]
[1767401084269,0.10982665,90074.0,90068.0,0.01110272]
[1767401084681,0.10982665,90074.0,90069.0,0.01110259]
[1767401084682,0.09872467,90074.0,90069.0,0.01110259]
[1767401085346,0.10982665,90074.0,90068.0,0.01110272]
[1767401085868,0.0111021,90073.0,90066.0,0.01110296]
[1767401086454,0.01110222,90072.0,90067.0,0.01110284]
[1767401086816,0.01110235,90071.0,90065.0,0.02222309]
[1767401087145,0.10982665,90074.0,90071.0,8.5e-05]
[1767401087575,0.09872467,90074.0,90071.0,8.5e-05]
[1767401087773,0.09872467,90074.0,90069.0,0.01110259]
[1767401089891,0.10982665,90074.0,90067.0,0.01112]
[1767401090101,0.01110222,90072.0,90067.0,0.02222284]
[1767401090302,0.0111021,90073.0,90067.0,0.02222284]
[1767401090730,0.0111021,90073.0,90067.0,0.01110284]
[1767401090936,0.0111021,90073.0,90067.0,0.02222284]
[1767401091107,0.10982665,90074.0,90068.0,0.01110272]
[1767401091314,0.0111021,90073.0,90067.0,0.02222284]
[1767401092300,0.10982665,90074.0,90067.0,0.02222284]
[1767401092550,0.10982665,90074.0,90068.0,0.01110272]
[1767401093522,0.0111021,90073.0,90068.0,0.01110272]
[1767401093710,0.0111021,90073.0,90067.0,0.02222284]
[1767401093922,0.10982665,90074.0,90068.0,0.01110272]
[1767401094326,0.01110185,90075.0,90069.0,0.01110259]
[1767401096712,0.01110185,90075.0,90068.0,0.01110272]
[1767401096852,0.01110198,90074.0,90068.0,0.01110272]
[1767401097295,0.01110198,90074.0,90069.0,0.01110259]
[1767401097646,0.0111021,90073.0,90068.0,0.01110272]
[1767401097847,0.01110198,90074.0,90068.0,0.01110272]
[1767401098220,0.0111021,90073.0,90067.0,0.01112]
[1767401098345,0.01110222,90072.0,90067.0,0.01112]
[1767401099123,0.0111021,90073.0,90067.0,0.01112]
[1767401099683,0.0111021,90073.0,90068.0,0.01110272]
[1767401099895,0.0111021,90073.0,90067.0,0.02222284]
[1767401100301,0.01110222,90072.0,90067.0,0.01112]
[1767401100499,0.01110198,90074.0,90068.0,0.01110272]
[1767401100703,0.01110198,90074.0,90067.0,0.02222284]
[1767401100922,0.01110198,90074.0,90068.0,0.01110272]
[1767401101669,0.0111021,90073.0,90068.0,0.01110272]
[1767401102164,0.0111021,90073.0,90067.0,0.02222284]
[1767401102677,0.01110222,90072.0,90067.0,0.01112]
[1767401102886,0.05551292,90070.0,90058.0,0.01110395]
[1767401103171,0.11757018,90065.0,90060.0,0.0111037]
[1767401103299,0.06661897,90065.0,90056.0,0.06662495]
[1767401103505,0.02220618,90065.0,90056.0,0.06662495]
[1767401103723,0.02220618,90065.0,90060.0,0.0111037]
[1767401103947,0.01110309,90065.0,90061.0,0.01110358]
[1767401104343,0.01101809,90065.0,90060.0,0.0111037]
[1767401104552,0.01101809,90065.0,90061.0,0.01110358]
[1767401105234,0.01101809,90065.0,90062.0,0.01110346]
[1767401105440,0.01110185,90075.0,90069.0,0.01110259]
[1767401105638,0.01116171,90076.0,90070.0,0.01110247]
[1767401105795,5.998e-05,90076.0,90071.0,0.01110235]
[1767401105992,5.998e-05,90076.0,90069.0,0.01110259]
[1767401106198,0.01116171,90076.0,90070.0,0.01110247]
[1767401106398,0.01110198,90074.0,90069.0,0.01110259]
[1767401106600,0.01116171,90076.0,90069.0,0.01110259]
[1767401106877,5.998e-05,90076.0,90072.0,0.01100224]
[1767401107199,5.998e-05,90076.0,90073.0,0.0111021]
[1767401109384,5.998e-05,90076.0,90073.0,0.06661212]
[1767401109561,5.998e-05,90076.0,90073.0,0.0111021]
[1767401110097,5.998e-05,90076.0,90072.0,0.0665129]
[1767401110286,5.998e-05,90076.0,90073.0,0.0111021]
[1767401110809,5.998e-05,90076.0,90073.0,0.06661215]
[1767401111814,5.998e-05,90076.0,90074.0,0.05550939]
[1767401114446,5.998e-05,90076.0,90073.0,0.06661215]
[1767401115428,5.998e-05,90076.0,90073.0,0.0111021]
[1767401116177,0.01110112,90081.0,90075.0,0.01110185]
[1767401116405,0.01110124,90080.0,90074.0,0.01110198]
[1767401116859,8.359e-05,90078.0,90074.0,0.01110198]
[1767401117603,8.359e-05,90078.0,90074.0,0.01010298]
[1767401118827,8.359e-05,90078.0,90075.0,0.01110185]
[1767401119257,8.359e-05,90078.0,90073.0,0.0111021]
[1767401119258,0.01118507,90078.0,90072.0,0.01112]
[1767401119463,0.10646709,90075.0,90070.0,0.01112]
[1767401119798,0.01110198,90074.0,90067.0,0.01110284]
[1767401119999,0.0111021,90073.0,90068.0,0.0221785]
[1767401120208,0.01110272,90068.0,90060.0,0.0111037]
[1767401120428,0.01110284,90067.0,90061.0,0.02222358]
[1767401120561,0.01110296,90066.0,90061.0,0.01112]
[1767401122041,0.01110296,90066.0,90061.0,0.02222358]
[1767401122667,0.01110296,90066.0,90061.0,0.01112]
[1767401122877,8.359e-05,90065.0,90061.0,0.01112]
[1767401123097,8.359e-05,90065.0,90061.0,0.02222358]
[1767401124460,8.359e-05,90065.0,90060.0,0.01116368]
[1767401124461,0.01110321,90064.0,90060.0,5.998e-05]
[1767401124639,8.359e-05,90065.0,90062.0,0.01112]
[1767401124856,8.359e-05,90065.0,90060.0,5.998e-05]
[1767401125059,8.359e-05,90065.0,90062.0,0.01112]
[1767401126938,0.01118668,90065.0,90062.0,0.01112]
[1767401127707,0.01110333,90063.0,90060.0,0.01117998]
[1767401129479,0.06662045,90063.0,90060.0,0.01117998]
[1767401129887,0.06662045,90063.0,90054.0,0.0001508]
[1767401129888,0.01110395,90058.0,90054.0,0.0001508]
[1767401130095,0.01110395,90058.0,90054.0,0.0112708]
[1767401130486,0.01110358,90061.0,90058.0,0.000999]
[1767401130686,0.01110383,90059.0,90054.0,0.0112708]
[1767401130889,0.01110383,90059.0,90054.0,0.02237524]
[1767401131019,0.01110358,90061.0,90056.0,0.0111042]
[1767401131229,0.01112,90070.0,90061.0,0.000999]
[1767401131436,0.01112,90070.0,90064.0,0.01110321]
[1767401131655,0.06661318,90073.0,90067.0,0.01110284]
[1767401131656,0.01110222,90072.0,90067.0,0.01110284]
[1767401131855,0.01110235,90071.0,90065.0,0.01110309]
[1767401132482,0.01110247,90070.0,90065.0,0.01110309]
[1767401132686,0.01110235,90071.0,90065.0,0.01110309]
[1767401133347,0.01110235,90071.0,90066.0,0.01110296]
[1767401133645,0.0112103,90072.0,90067.0,0.01110284]
[1767401133847,0.0112103,90072.0,90066.0,0.01110296]
[1767401134045,0.01110235,90071.0,90064.0,0.01110321]
[1767401134324,0.01110235,90071.0,90066.0,0.01110296]
[1767401134492,0.0112103,90072.0,90066.0,0.01110296]
[1767401134878,0.01110235,90071.0,90065.0,0.01110309]
[1767401135088,0.01110247,90070.0,90065.0,0.01110309]
[1767401135296,0.01110235,90071.0,90066.0,0.01110296]
[1767401135708,0.0112103,90072.0,90066.0,0.01110296]
[1767401135990,0.00010808,90072.0,90067.0,0.01110284]
[1767401136652,0.00010808,90072.0,90068.0,0.01110272]
[1767401136836,0.00010808,90072.0,90067.0,0.01110284]
[1767401137183,0.00010808,90072.0,90068.0,0.01110272]
[1767401137385,0.00010808,90072.0,90067.0,0.01110284]
[1767401137787,0.00010808,90072.0,90068.0,0.01110272]
[1767401137996,0.00010808,90072.0,90067.0,0.01110284]
[1767401138403,0.00010808,90072.0,90068.0,0.01110272]
[1767401138586,0.00010808,90072.0,90067.0,0.01110284]
[1767401138789,0.00010808,90072.0,90068.0,0.11163873]
[1767401139352,0.00010808,90072.0,90068.0,0.12274145]
[1767401140151,0.00010808,90072.0,90068.0,0.11163873]
[1767401140355,0.00010808,90072.0,90068.0,0.12274145]
[1767401140554,0.00010808,90072.0,90068.0,0.11163873]
[1767401140987,0.0112103,90072.0,90067.0,0.01110284]
[1767401141192,0.00010808,90072.0,90067.0,0.01110284]
[1767401141390,8e-08,90072.0,90068.0,0.01110272]
[1767401141598,8e-08,90072.0,90070.0,0.11163873]
[1767401142527,0.01110112,90081.0,90075.0,0.01110185]
[1767401142719,0.01114512,90081.0,90076.0,0.01089375]
[1767401142841,0.01110124,90080.0,90075.0,0.01110185]
[1767401143044,4.4e-05,90081.0,90075.0,0.01110185]
[1767401143502,0.01114512,90081.0,90075.0,0.01110185]
[1767401144371,0.01110124,90080.0,90074.0,0.01110198]
[1767401144934,0.01110124,90080.0,90075.0,0.01110185]
[1767401145498,0.01110124,90080.0,90074.0,0.01110198]
[1767401145900,0.01110124,90080.0,90073.0,0.0111021]
[1767401146106,0.01110124,90080.0,90072.0,0.05551073]
[1767401146107,0.01110148,90078.0,90072.0,0.01110222]
[1767401146523,0.01110136,90079.0,90073.0,0.0111021]
[1767401146734,0.01110136,90079.0,90074.0,0.01110198]
[1767401146944,0.01110124,90080.0,90075.0,0.11163873]
[1767401147159,0.01110148,90078.0,90075.0,0.11163873]
[1767401147701,0.01110161,90077.0,90073.0,0.11163873]
[1767401148218,0.01110148,90078.0,90073.0,0.12274083]
[1767401148647,0.01110148,90078.0,90073.0,0.11163873]
[1767401148820,0.01110148,90078.0,90073.0,0.12274083]
[1767401149460,0.01110136,90079.0,90073.0,0.12274083]
[1767401149860,0.01110136,90079.0,90074.0,0.12274071]
[1767401150486,0.01110124,90080.0,90074.0,0.12274071]
[1767401150692,0.01110136,90079.0,90074.0,0.12274071]
[1767401150913,0.01110124,90080.0,90074.0,0.12274071]
[1767401151854,0.05550483,90083.0,90074.0,0.12274071]
[1767401151855,0.05547871,90083.0,90074.0,0.01110198]
[1767401151992,0.01110148,90078.0,90073.0,0.0111021]
[1767401152390,0.00660744,90078.0,90073.0,0.0111021]
[1767401152738,0.01110136,90079.0,90074.0,0.01110198]
[1767401152936,0.01110136,90079.0,90073.0,0.0111021]
[1767401153095,0.01110136,90079.0,90074.0,0.01110198]
[1767401153520,0.01110136,90079.0,90073.0,0.0111021]
[1767401153899,0.01110136,90079.0,90074.0,0.01110198]
[1767401154323,0.01110136,90079.0,90073.0,0.0111021]
[1767401154534,0.01110136,90079.0,90074.0,0.01110198]
[1767401155037,0.01110136,90079.0,90073.0,0.0111021]
[1767401155670,0.01110161,90077.0,90072.0,0.01110222]
[1767401157639,0.01110136,90079.0,90073.0,0.0111021]
[1767401159609,0.01110148,90078.0,90073.0,0.0111021]
[1767401160230,0.01110161,90077.0,90072.0,0.01110222]
[1767401160430,0.01110124,90080.0,90075.0,0.01110185]
[1767401160645,0.01110124,90080.0,90074.0,0.01110198]
[1767401161045,0.01110124,90080.0,90075.0,0.01110185]
[1767401161470,0.01110112,90081.0,90075.0,0.01110185]
[1767401161689,0.01110112,90081.0,90076.0,0.01110173]
[1767401161894,0.01110112,90081.0,90075.0,0.01110185]
[1767401162298,0.01110124,90080.0,90075.0,0.01110185]
[1767401162497,0.01110112,90081.0,90075.0,0.01110185]
[1767401162895,0.01110136,90079.0,90073.0,0.0111021]
[1767401163077,0.01110148,90078.0,90072.0,0.01110222]
[1767401163478,0.01110148,90078.0,90073.0,0.0111021]
[1767401165129,0.01110148,90078.0,90072.0,0.01110222]
[1767401165330,0.01110136,90079.0,90073.0,0.0111021]
[1767401165653,0.01110148,90078.0,90073.0,0.0111021]
[1767401165878,0.01110136,90079.0,90074.0,0.01110198]
[1767401166281,0.06660791,90080.0,90074.0,0.01110198]
[1767401166282,0.01110124,90080.0,90074.0,0.01110198]
[1767401166413,0.01110087,90083.0,90080.0,0.000999]
[1767401166767,0.01110099,90082.0,90077.0,0.01110161]
[1767401167321,0.01110099,90082.0,90076.0,0.01110173]
[1767401167522,0.01110112,90081.0,90075.0,0.01110185]
[1767401168141,0.01110112,90081.0,90076.0,0.01110173]
[1767401168352,0.01110136,90079.0,90074.0,0.01110198]
[1767401168560,0.01110124,90080.0,90074.0,0.01110198]
[1767401168758,0.01110161,90077.0,90073.0,0.11359185]
[1767401168958,0.01110148,90078.0,90072.0,0.00897674]
[1767401169552,0.01110136,90079.0,90073.0,0.0111021]
[1767401169751,0.01110136,90079.0,90074.0,0.01110198]
[1767401170761,0.01110136,90079.0,90073.0,0.0111021]
[1767401171000,0.01110161,90077.0,90072.0,0.00897674]
[1767401171228,0.01110148,90078.0,90073.0,0.0111021]
[1767401173257,0.01110136,90079.0,90074.0,0.01110198]
[1767401173902,0.01110148,90078.0,90073.0,0.0111021]
[1767401174284,0.01110161,90077.0,90071.0,0.06661366]
[1767401174647,0.01110173,90076.0,90071.0,0.06661366]
[1767401174850,0.01110173,90076.0,90071.0,0.01110235]
[1767401175248,0.01110173,90076.0,90070.0,0.01110247]
[1767401175448,0.01110173,90076.0,90071.0,0.01110235]
[1767401175697,0.01110198,90074.0,90068.0,0.12471185]
[1767401175897,0.01110173,90076.0,90070.0,0.01110247]
[1767401176979,0.01110173,90076.0,90071.0,0.01110235]
[1767401177797,0.01110185,90075.0,90070.0,0.01110247]
[1767401178207,0.01110173,90076.0,90071.0,0.01110235]
[1767401178681,0.01110173,90076.0,90070.0,0.01110247]
[1767401178888,0.01110185,90075.0,90070.0,0.01110247]
[1767401179072,0.01110173,90076.0,90071.0,0.01110235]
[1767401179273,0.01110185,90075.0,90070.0,0.01110247]
[1767401179475,0.01110161,90077.0,90072.0,0.01110222]
[1767401179728,0.01110173,90076.0,90071.0,0.01110235]
[1767401179909,0.01110173,90076.0,90072.0,0.01110222]
[1767401180119,0.01110161,90077.0,90072.0,0.01110222]
[1767401181566,0.01110161,90077.0,90070.0,0.01110247]
[1767401181971,0.01110161,90077.0,90071.0,0.01110235]
[1767401182206,0.01110173,90076.0,90068.0,0.13581457]
[1767401182398,0.01110185,90075.0,90070.0,0.01110247]
[1767401182632,0.01110198,90074.0,90069.0,0.01110259]
[1767401182787,0.01110185,90075.0,90069.0,0.01110259]
[1767401183207,0.01110173,90076.0,90070.0,0.01110247]
[1767401185103,0.01110161,90077.0,90070.0,0.01110247]
[1767401185306,0.12430812,90092.0,90078.0,0.01110148]
[1767401185507,0.12430812,90092.0,90081.0,0.11960861]
[1767401185724,0.0111005,90086.0,90081.0,0.11960861]
[1767401186543,0.0111005,90086.0,90081.0,0.13070973]
[1767401186737,0.01110025,90088.0,90083.0,0.01110087]
[1767401187127,0.05550043,90090.0,90083.0,0.01110087]
[1767401187128,0.01110013,90089.0,90084.0,0.01110075]
[1767401187311,0.01110025,90088.0,90083.0,0.01110087]
[1767401187653,0.01110038,90087.0,90082.0,0.01110099]
[1767401187850,0.01110025,90088.0,90083.0,0.01110087]
[1767401188699,0.01110038,90087.0,90082.0,0.01110099]
[1767401189037,0.01109988,90091.0,90087.0,0.000999]
[1767401189374,0.01110001,90090.0,90085.0,0.01110062]
[1767401189879,0.01109988,90091.0,90086.0,0.0111005]
[1767401190493,0.1738189,90095.0,90091.0,0.000999]
[1767401190812,0.01109951,90094.0,90091.0,0.000999]
[1767401191045,0.12942019,90100.0,90091.0,0.01109988]
[1767401191250,0.01109865,90101.0,90096.0,0.11960861]
[1767401191632,0.01109877,90100.0,90096.0,0.11960861]
[1767401192215,0.01109865,90101.0,90096.0,0.13070788]
[1767401192412,0.01109865,90101.0,90096.0,0.11960861]
[1767401192901,0.0001508,90104.0,90099.0,0.0110989]
[1767401193101,0.0001508,90104.0,90100.0,0.01109877]
[1767401193346,0.0001508,90104.0,90101.0,0.01109865]
[1767401194616,0.0001508,90104.0,90101.0,0.01114265]
[1767401195054,8e-07,90104.0,90101.0,0.01114265]
[1767401195255,8e-07,90104.0,90102.0,0.05549217]
[1767401195460,8e-07,90104.0,90101.0,0.01114265]
[1767401195801,8e-07,90104.0,90102.0,0.05549266]
[1767401197709,8e-07,90104.0,90101.0,0.01114265]
[1767401198108,8e-07,90104.0,90101.0,4.4e-05]
[1767401198336,0.0110984,90103.0,90098.0,0.01109902]
[1767401198510,0.0110984,90103.0,90097.0,0.01109914]
[1767401198511,0.0112065,90103.0,90097.0,0.01109914]
[1767401198870,0.0112065,90103.0,90097.0,0.01099314]
[1767401198871,0.01109853,90102.0,90097.0,0.01099314]
[1767401199022,0.01109865,90101.0,90096.0,0.13070788]
[1767401199233,0.01109853,90102.0,90097.0,0.01109914]
[1767401199695,0.0112065,90103.0,90098.0,0.01109902]
[1767401199886,0.0001081,90103.0,90099.0,0.0110989]
[1767401200045,0.0112065,90103.0,90098.0,0.01109902]
[1767401200416,0.0001081,90103.0,90098.0,0.01109902]
[1767401200929,0.0001081,90103.0,90100.0,0.01109877]
[1767401201911,1e-07,90103.0,90100.0,0.01109877]
[1767401205664,1e-07,90103.0,90100.0,0.01105455]
[1767401207858,1e-07,90103.0,90100.0,0.06654797]
[1767401210007,1e-07,90103.0,90102.0,0.05549266]
[1767401210408,1e-07,90103.0,90102.0,0.05544844]
[1767401211407,1e-07,90103.0,90102.0,0.06656844]
[1767401211609,1e-07,90103.0,90102.0,0.06661266]
[1767401217076,1e-07,90103.0,90102.0,0.18925242]
[1767401217372,1e-07,90103.0,90102.0,0.06661266]
[1767401217737,1e-07,90103.0,90102.0,0.06575753]
[1767401218323,1e-07,90103.0,90102.0,0.18839729]
[1767401218555,1e-07,90103.0,90102.0,0.18835307]
[1767401223766,1e-07,90103.0,90102.0,0.19132579]
[1767401223973,0.1164598,90117.0,90114.0,0.01109705]
[1767401224087,0.1164598,90117.0,90114.0,0.06647395]
[1767401224088,0.11682013,90117.0,90114.0,0.06647395]
[1767401224295,0.11682013,90117.0,90114.0,0.06642974]
[1767401225430,0.11682013,90117.0,90115.0,0.05548421]
[1767401227211,0.0002,90119.0,90114.0,0.06642974]
[1767401227212,0.1166598,90119.0,90117.0,0.055483]
[1767401227541,1e-08,90119.0,90117.0,0.055483]
[1767401230242,1e-08,90119.0,90116.0,0.18618907]
[1767401230480,1e-08,90119.0,90118.0,0.05548281]
[1767401232361,1e-08,90119.0,90116.0,0.19730907]
[1767401232836,1e-08,90119.0,90116.0,0.14182541]
[1767401233086,1e-08,90119.0,90116.0,0.13072861]
[1767401233529,1e-08,90119.0,90116.0,0.14182541]
[1767401234639,1e-08,90119.0,90116.0,0.19730894]
[1767401235062,1e-08,90119.0,90117.0,0.05548301]
[1767401236497,1e-08,90119.0,90116.0,0.19730894]
[1767401236924,0.0110968,90116.0,90110.0,0.18619356]
[1767401237150,0.1164598,90116.0,90110.0,0.02224]
[1767401237388,0.01109644,90119.0,90110.0,0.02224]
[1767401237389,1e-08,90119.0,90111.0,0.17509532]
[1767401237596,1e-08,90119.0,90113.0,0.01109717]
[1767401237597,0.01109644,90119.0,90113.0,0.01109717]
[1767401237788,0.08642939,90119.0,90114.0,0.01109705]
[1767401237992,0.08642939,90119.0,90113.0,0.01109717]
[1767401238289,0.01109656,90118.0,90112.0,0.0110973]
[1767401238506,0.01109656,90118.0,90113.0,0.01109717]
[1767401239128,0.01109656,90118.0,90112.0,0.0110973]
[1767401240191,0.08642939,90119.0,90113.0,0.01109717]
[1767401240597,0.08642939,90119.0,90114.0,0.01109705]
[1767401240797,0.08642939,90119.0,90112.0,0.0110973]
[1767401241084,0.01109668,90117.0,90111.0,0.11960861]
[1767401241236,0.01109656,90118.0,90111.0,0.13070603]
[1767401241438,0.01109668,90117.0,90112.0,0.0110973]
[1767401242240,0.01109668,90117.0,90111.0,0.13070603]
[1767401242965,0.01109656,90118.0,90112.0,0.0110973]
[1767401243138,0.01109668,90117.0,90111.0,0.13070603]
[1767401243325,0.0110968,90116.0,90111.0,0.13070603]
[1767401243523,0.01109656,90118.0,90112.0,0.0110973]
[1767401243938,0.07353039,90115.0,90111.0,0.13070603]
[1767401244142,0.07353039,90115.0,90112.0,0.0110973]
[1767401244874,0.01109668,90117.0,90112.0,0.0110973]
[1767401245190,0.01109668,90117.0,90112.0,0.13670978]
[1767401246303,0.01109656,90118.0,90114.0,0.12561248]
[1767401247211,0.01109668,90117.0,90114.0,0.12561248]
[1767401247968,0.01109668,90117.0,90112.0,0.13670978]
[1767401249027,0.01109656,90118.0,90113.0,0.01109717]
[1767401249576,0.01109644,90119.0,90113.0,0.01109717]
[1767401250008,0.01109619,90121.0,90119.0,0.00099899]
[1767401250209,0.06657725,90121.0,90119.0,0.00099899]
[1767401250635,0.01109631,90120.0,90115.0,0.11474758]
[1767401251143,0.01109619,90121.0,90116.0,0.0110968]
[1767401251369,0.01109631,90120.0,90115.0,0.11474758]
[1767401251746,0.0665784,90120.0,90115.0,0.11474758]
[1767401252129,0.01109643,90119.0,90115.0,0.11474758]
[1767401252349,0.01109631,90120.0,90115.0,0.12584451]
[1767401252558,0.01109631,90120.0,90119.0,0.000999]
[1767401252714,0.01109643,90119.0,90115.0,0.11474758]
[1767401253528,0.01116024,90120.0,90115.0,0.11474758]
[1767401253729,0.01116024,90120.0,90119.0,0.000999]
[1767401253916,0.01109643,90119.0,90115.0,0.11474758]
[1767401254275,0.01109656,90118.0,90115.0,0.11474758]
[1767401254927,0.01116024,90120.0,90115.0,0.11474758]
[1767401255335,0.01116024,90120.0,90115.0,0.11732051]
[1767401255539,0.01109656,90118.0,90113.0,0.12584475]
[1767401255760,0.01109643,90119.0,90114.0,0.11474758]
[1767401255963,0.01109643,90119.0,90114.0,0.12584463]
[1767401256076,6.393e-05,90120.0,90115.0,0.01109693]
[1767401256528,0.01103331,90120.0,90115.0,0.01109693]
[1767401256766,0.01109594,90123.0,90117.0,0.01109668]
[1767401257061,0.01109594,90123.0,90118.0,0.12584414]
[1767401257268,0.01109594,90123.0,90118.0,0.11474758]
[1767401257467,0.01109606,90122.0,90118.0,0.11474758]
[1767401257887,0.01016006,90122.0,90118.0,0.11474758]
[1767401258091,0.01016006,90122.0,90117.0,0.01109668]
[1767401258654,0.01109594,90123.0,90117.0,0.01109668]
[1767401258655,0.01109594,90123.0,90118.0,0.01109656]
[1767401258887,0.01109594,90123.0,90117.0,0.01109668]
[1767401259290,0.01109619,90121.0,90116.0,0.11474758]
[1767401259495,0.01109594,90123.0,90116.0,0.11474758]
[1767401259496,0.01109606,90122.0,90117.0,0.01109668]
[1767401259671,0.01109606,90122.0,90116.0,0.12584438]
[1767401259672,0.01109606,90122.0,90118.0,0.11474758]
[1767401260095,0.01109594,90123.0,90118.0,0.12584414]
[1767401260328,0.01109582,90124.0,90118.0,0.12584414]
[1767401260456,0.01109582,90124.0,90120.0,0.11474758]
[1767401260662,0.01109594,90123.0,90120.0,0.11474758]
[1767401261466,0.01109594,90123.0,90118.0,0.01109656]
[1767401261467,0.01109606,90122.0,90118.0,0.11474758]
[1767401261781,0.01109594,90123.0,90118.0,0.12584414]
[1767401262635,0.01109606,90122.0,90118.0,0.11474758]
[1767401262865,0.01109594,90123.0,90118.0,0.12584414]
[1767401263613,0.01109582,90124.0,90120.0,0.11474758]
[1767401265068,0.0110957,90125.0,90120.0,0.12584389]
[1767401265230,0.0002,90126.0,90123.0,0.11474758]
[1767401265631,0.0002,90127.0,90126.0,0.11474758]
[1767401265845,0.06677002,90131.0,90127.0,0.11474758]
[1767401266172,0.0110952,90129.0,90127.0,0.11474758]
[1767401266468,0.01149508,90130.0,90127.0,0.11474758]
[1767401267228,0.01149508,90130.0,90127.0,0.10651005]